Cogmind - Beta 13 @@@ ROGUE MODE // 2024.04.05 @ 14:35:56 Player: Spuddz Result: Self-destructed Performance ------------- Evolutions (1) 500 Regions Visited (2) 400 Robots Destroyed (25) 125 Value Destroyed (579) 579 Prototype IDs (0) 0 Alien Tech Used (0) 0 Bonus (0) 0 TOTAL SCORE: 1604 Bonus ------- None Cogmind --------- Core Integrity 389/400 Matter 78/300 Energy 250/250 System Corruption 0% Temperature Cool (0) Movement Walking (260) Ox2 Location -9/Materials Parts ------- > --- POWER (1) -------- Ion Engine > --- PROPULSION (4) --- Aluminum Leg Aluminum Leg Aluminum Leg Aluminum Leg > --- UTILITY (2) ------ Huge Storage Unit Transport Network Coupler > --- WEAPON (2) ------- Assault Rifle Heavy Assault Rifle > --- INVENTORY (25) --- Aluminum Leg Sensor Array Light Assault Rifle Grenade Launcher Peak State ------------ > --- POWER ------------ Ion Engine > --- PROPULSION ------- Aluminum Leg Aluminum Leg Aluminum Leg Aluminum Leg > --- UTILITY ---------- Huge Storage Unit Transport Network Coupler > --- WEAPON ----------- Light Assault Rifle Heavy Assault Rifle > --- INVENTORY -------- Sensor Array Assault Rifle Grenade Launcher [Rating: 10] Favorites ----------- Power Ion Engine Engine Ion Engine Propulsion Aluminum Leg Leg Aluminum Leg Utility Huge Storage Unit Device Sensor Array Storage Huge Storage Unit Processor Transport Network Coupler Weapon Assault Rifle Ballistic Gun Assault Rifle Launcher Grenade Launcher Build | -11 -10 -9 ------- Run | Yrd Mat Mat Slots Evolved 2 | . . 2 Power . | . . . Propulsion 2 | . . 2 Utility . | . . . Weapon . | . . . Parts Attached 24 | 6 13 5 Power 2 | 1 1 . Engine 2 | 1 1 . Core . | . . . Reactor . | . . . Propulsion 4 | 2 . 2 Treads . | . . . Leg 4 | 2 . 2 Wheel . | . . . Hover . | . . . Flight . | . . . Utility 4 | 1 3 . Device 1 | . 1 . Storage 2 | 1 1 . Processor 1 | . 1 . Hackware . | . . . Protection . | . . . Artifact . | . . . Weapon 14 | 2 9 3 Energy Gun . | . . . Energy Cannon . | . . . Ballistic Gun 9 | 2 5 2 Ballistic Cannon . | . . . Launcher 5 | . 4 1 Special Weapon . | . . . Impact Weapon . | . . . Slashing Weapon . | . . . Piercing Weapon . | . . . Special Melee Weapon . | . . . Unidentified Prototypes . | . . . Parts Lost 2 | . 2 . Power 1 | . 1 . Propulsion . | . . . Utility . | . . . Weapon 1 | . 1 . Highest Loss Streak 2 | . 2 . To Critical Strikes . | . . . Average Slot Usage (%) 96 | . 95 100 Engine 10 | . 10 11 Leg 31 | . 28 44 Device 2 | . 2 . Storage 13 | . 14 11 Processor 11 | . 11 11 Ballistic Gun 26 | . 27 22 Naked Turns . | . . . Heaviest Build 91 | 14 90 91 Greatest Support 40 | 20 20 40 Greatest Overweight (x) 4 | 2 4 2 Average Overweight (x) 2 | . 2 2 Largest Inventory Capacity 25 | 8 25 25 Average Capacity 21 | 7 21 25 Most Carried 7 | 5 7 4 Average Carried 4 | 1 4 3 Final Capacity 25 | 8 25 25 Final Carried 4 | 2 4 4 Class Distribution -------------------- 85% | Mutant 14% | Scavenger-Mutant Dominant Class ---------------- Mutant | -10/Materials Scavenger-Mutant | -9/Materials Resources | -11 -10 -9 ----------- Run | Yrd Mat Mat Matter Collected 626 | 189 262 175 Remotely . | . . . Salvage Created 781 | . 530 251 Parts 48 | . 32 16 Haulers Intercepted 4 | . 2 2 Recyclers Shooed . | . . . Parts Field Recycled . | . . . Retrieved Matter . | . . . Parts Self-Destructed . | . . . Prevented . | . . . Kills | -11 -10 -9 ------- Run | Yrd Mat Mat Combat Hostiles Destroyed 17 | . 13 4 Guns 7 | . 3 4 AOE 10 | . 10 . Classes Destroyed 8 | . 7 1 Worker 1 | . 1 . Builder 1 | . 1 . Hauler 4 | . 2 2 Recycler 1 | . 1 . Watcher 1 | . 1 . Swarmer 3 | . 3 . Grunt 13 | . 10 3 Sentry 1 | . . 1 Best Kill Streak 6 | . 6 2 Combat Bots Only 5 | . 5 2 Max Kills in Single Turn 3 | . 3 1 Gunslinging . | . . . Exploded 3 | . 3 . Melee . | . . . Uniques/NPCs Destroyed . | . . . Combat | -11 -10 -9 -------- Run | Yrd Mat Mat Hostile Shots Fired 78 | . 52 26 Missed 29 | . 19 10 Damage Taken 628 | . 439 189 Core 72 | . 61 11 Absorbed by Shields . | . . . Core Remaining (%) 87 | 100 75 . Volleys Fired 61 | . 42 19 Largest 2 | . 2 2 Hottest 53 | . 50 53 Shots Fired 120 | . 82 38 Gun 105 | . 68 37 Cannon . | . . . Launcher 15 | . 14 1 Special . | . . . Kinetic 105 | . 68 37 Thermal . | . . . Explosive 15 | . 14 1 Electromagnetic . | . . . Robot Hit Streak 8 | . 6 8 Robot Miss Streak 4 | . 4 2 Penetration Max . | . . . Secondary Targets . | . . . Shots Hit Robots 67 | . 39 28 Core Hits 47 | . 34 13 Critical Kills . | . . . Critical Parts Destroyed 1 | . 1 . Critical Strikes 1 | . 1 . Destroy 1 | . 1 . Melee Attacks . | . . . Impact . | . . . Slashing . | . . . Piercing . | . . . Sneak Attacks . | . . . Combat Hostiles . | . . . Follow-up Attacks . | . . . Damage Inflicted 1685 | . 1311 374 Guns 856 | . 489 367 Cannons . | . . . Explosions 819 | . 819 . Melee . | . . . Ramming 10 | . 3 7 Kinetic 856 | . 489 367 Thermal . | . . . Explosive 819 | . 819 . Electromagnetic . | . . . Impact . | . . . Slashing . | . . . Piercing . | . . . Highest Corruption 2 | . 2 . Average Corruption 2 | . 2 . Corruption Purged . | . . . Corruption Blocked . | . . . Effects 9 | . 9 . Message Errors 2 | . 2 . Matter Fused 1 | . 1 . Heat Flow Errors 3 | . 3 . Energy Discharges 1 | . 1 . Data Loss (major) 1 | . 1 . Misfires 1 | . 1 . Overload Shots . | . . . Overflow Damage 19 | . 19 . Projectiles . | . . . Explosions 19 | . 19 . Melee . | . . . Knockbacks . | . . . Impact . | . . . Kinetic . | . . . Secondary . | . . . Self-Inflicted Damage 38 | . 38 . Shots 2 | . 2 . Rammed . | . . . Targets Rammed 4 | . 1 3 Kicked 4 | . 1 3 Crushed . | . . . Highest Temperature 264 | . 264 6 Average Temperature 63 | . 65 6 Received Heat Transfer 363 | . 273 90 Siege Activations . | . . . Robots Corrupted . | . . . Combat Hostiles . | . . . Parts Fried . | . . . Impact Corruptions . | . . . Robots Melted . | . . . Combat Hostiles . | . . . Parts Melted . | . . . Heat Transferred . | . . . Parts Sabotaged . | . . . Parts Stolen . | . . . Parts Stripped . | . . . Power Chain Reactions . | . . . Alert | -11 -10 -9 ------- Run | Yrd Mat Mat Peak Influence 367 | . 367 165 Initial 35 | . . 35 Average 156 | . 180 101 Maximum Alert Level 1 | . 1 . Low Security (%) 61 | 100 49 100 Level 1 38 | . 50 . Level 2 . | . . . Level 3 . | . . . Level 4 . | . . . Level 5 . | . . . High Security . | . . . Max Security . | . . . Squads Dispatched 3 | . 3 . Investigation 1 | . 1 . Extermination . | . . . Reinforcement 2 | . 2 . Assault . | . . . Garrison . | . . . Intercept . | . . . Searches Triggered . | . . . Construction Impeded . | . . . Haulers Reinforced . | . . . Active Scanning Responses . | . . . Cargo Convoy Interrupts . | . . . Stealth | -11 -10 -9 --------- Run | Yrd Mat Mat Distress Signals 4 | . 2 2 Communications Jammed . | . . . Distress Signals . | . . . Times Spotted 34 | . 22 12 Peak Tracking Total 6 | . 5 6 Tactical Retreats . | . . . Traps | -11 -10 -9 ------- Run | Yrd Mat Mat Traps Triggered 2 | . 2 . Indirectly . | . . . Trap Hack Attempts . | . . . Triggered . | . . . Disarmed . | . . . Reprogrammed . | . . . Reused . | . . . Traps Extracted . | . . . Installed . | . . . Triggered . | . . . Machines | -11 -10 -9 ---------- Run | Yrd Mat Mat Machines Disabled . | . . . Max in Single Turn . | . . . Machines Repaired . | . . . Machines Dismantled . | . . . Machines Sabotaged . | . . . Overloaded Fab Kills . | . . . Hacking | -11 -10 -9 --------- Run | Yrd Mat Mat Machines Accessed . | . . . Terminals . | . . . Fabricators . | . . . Repair Stations . | . . . Recycling Units . | . . . Scanalyzers . | . . . Garrison Access . | . . . Total Hacks . | . . . Successful . | . . . Failed . | . . . Catastrophic . | . . . Database Lockouts . | . . . Manual . | . . . Terminals . | . . . Fabricators . | . . . Repair Stations . | . . . Recycling Units . | . . . Scanalyzers . | . . . Garrison Access . | . . . Terminal Hacks . | . . . Fabricator Hacks . | . . . Repair Station Hacks . | . . . Recycling Unit Hacks . | . . . Scanalyzer . | . . . Garrison Access Hacks . | . . . Unauthorized Hacks . | . . . Terminals . | . . . Fabricators . | . . . Repair Stations . | . . . Recycling Units . | . . . Scanalyzers . | . . . Garrison Access . | . . . Data Cores Recovered . | . . . Used . | . . . Hacking Detections . | . . . Full Trace Events . | . . . Feedback Events . | . . . Feedback Blocked . | . . . Robot Schematics Acquired . | . . . Robots Built . | . . . Authchips . | . . . Time . | . . . Total Robot Build Rating . | . . . Part Schematics Acquired . | . . . Parts Built . | . . . Authchips . | . . . Time . | . . . Total Part Build Rating . | . . . Parts Repaired . | . . . Time . | . . . Parts Recycled . | . . . Recycled Matter . | . . . Retrieved Matter . | . . . Retrieved Components . | . . . Parts Scanalyzed . | . . . Part Schematics Acquired . | . . . Parts Damaged . | . . . Bothacking | -11 -10 -9 ------------ Run | Yrd Mat Mat Used RIF Installer . | . . . Robots Hacked . | . . . Non-combat . | . . . Combat . | . . . Robot Hacks Applied . | . . . Relay Couplers Released . | . . . Fabnet Peak Effective % . | . . . Robots Rewired . | . . . Allies Hacked . | . . . Hacks Repelled . | . . . Allies | -11 -10 -9 -------- Run | Yrd Mat Mat Total Allies . | . . . Largest Group . | . . . Highest-Rated Group . | . . . Highest-Rated Ally . | . . . Total Orders . | . . . Ally Attacks . | . . . Total Damage . | . . . Kills . | . . . Allies Corrupted . | . . . Allies Melted . | . . . Intel | -11 -10 -9 ------- Run | Yrd Mat Mat Robot Analysis Total . | . . . Derelict Logs Recovered . | . . . Drone Launches . | . . . Drone Recoveries . | . . . Exploration | -11 -10 -9 ------------- Run | Yrd Mat Mat Turns Passed 1264 | 58 953 253 Spaces Moved 392 | 40 283 69 Core 23 | 23 . . Treads . | . . . Legs 369 | 17 283 69 Wheels . | . . . Hover . | . . . Flight . | . . . Fastest Speed 50 | 50 120 260 Average Speed 263 | 112 285 260 Slowest Speed 400 | 150 400 260 Overloaded Moves . | . . . Propulsion Burnouts . | . . . Robots Hopped . | . . . Cave-ins Triggered . | . . . Exploration Rate (%) 20 | 3 49 9 Regions Visited 2 Branch Regions . Pre-discovered Areas . | . . . Known Exits Taken . | . . . Unknown Exits Taken 2 | 1 1 . Scrap Searched . | . . . Spaces Dug . | . . . Terrain Destroyed 89 | . 80 9 Melee . | . . . Projectile . | . . . AOE 89 | . 80 9 Terrain Rammed . | . . . Walls Destroyed . | . . . Machines Disabled . | . . . Actions | -11 -10 -9 --------- Run | Yrd Mat Mat Total 501 | 53 350 98 Wait 3 | . 3 . Move 390 | 39 282 69 Hop . | . . . Pick Up 17 | 8 7 2 Fast Attach . | . . . Attach 11 | 6 3 2 Detach . | . . . Swap 13 | . 10 3 Drop 2 | . 2 . Fire 61 | . 42 19 Melee . | . . . Ram . | . . . Kick 4 | . 1 3 Crush . | . . . Escape Stasis . | . . . Rewire . | . . . Trap . | . . . Miscellaneous . | . . . Route ------- -11/Scrapyard -10/Materials (discovered 2 exits: [*Mat x2]) -9/Materials History --------- Turn | Location | Event 14 | -11/Scrapyard | Discovered new exit (range 16) 59 | -11/Scrapyard | Entered Materials 233 | -10/Materials | Discovered new exit (range 15) 342 | -10/Materials | Build established: Mutant 814 | -10/Materials | Discovered new exit (range 15) 1012 | -10/Materials | Entered another Materials area 1012 | -9/Materials | Evolved 2 slots: Propulsion x2 1265 | -9/Materials | Self-destructed Last Messages --------------- U-05 Engineer builds a Wall. Acquired Aluminum Leg. U-05 Engineer builds a Wall. U-05 Engineer lays Concrete. U-05 Engineer builds a Wall. U-05 Engineer lays Concrete. U-05 Engineer builds a Wall. W-16 Scout sends out distress signal. Kicked U-05 Engineer out of the way. K-01 Serf collects debris. A-02 Transporter destroyed. R-06 Scavenger collects Lgt. Armor Plating. G-34 Mercenary destroyed. R-06 Scavenger collects Ion Engine. R-06 Scavenger collects Prototype Flight Unit. Acquired 38 matter. K-01 Serf collects debris. A-02 Transporter destroyed. Acquired 50 matter. Map ----- +----------------------------------------------------+ | ?????????? ??????????????????????????????????????? | | ?????????? """" ?????????????????????????????????? | | ?????????? """" ?????????????????????????????????? | | ?????????? % ?????????????????????????????????? | | ??????????###+###????????????????????????????????? | | ??????????## [ ###???????????????????????????????? | | ?????????? # ???????????????????????????????? | | ???????????# # ?????????##########?????????????? | | ???????????# +??????##### #?????????????? | | ???????????# #??????# # #?????????????? | | ???????????# #??????# # #?????????????? | | ??????????## ##?????# # #?????????????? | | ??????????# !=####### + #?????????????? | | ??????????# !=%== # #?????????????? | | ##+###### T = # #?????????????? | | !* * # #?????????????? | | ## ###### ###+###= # #?????????????? | | ??????????###+#### ?# ! ##########?????????????? | | ??????????? ?#[ ?# #? ????????????????? | | ????????? # ! # # """""????????????????? | | ???????# # # # ""T"" #?????????????? | | ???????# # #r g/ #?????????????? | | ???????# # # g# #?????????????? | | ???????+ # # !# #?????????????? | | ???????# # # ==#? ?? #?????????????? | | ???????# # # =@#? !??a / ???????????? | | ???????################ *=#?? ????####??????????? | | ??????????????????????# #???#??????????????????? | | ??????????????????????# w #??????????????????????? | | ??????????????????????# #??????????????????????? | | ??????????????????????# #??????????????????????? | | ??????????????????????# #??????????????????????? | | ????????????????a?????#g #??????????????????????? | | ??????????????????????/g #??????????????????????? | | ??????????????????????# ???????????????????????? | | ??????????????????????#a ???????????????????????? | | ??????????????????????# ???????????????????????? | | ??????????????????????# ???????????????????????? | | ??????????????????????# ???????????????????????? | | ??????????????????????# ???????????????????????? | | ??????????????????????? ???????????????????????? | | ?????????????????????????????????????????????????? | | ?????????????????????????????????????????????????? | | ?????????????????????????????????????????????????? | | ?????????????????????????????????????????????????? | | ?????????????????????????????????????????????????? | | ?????????????????????????????????????????????????? | | ?????????????????????????????????????????????????? | | ?????????????????????????????????????????????????? | | ?????????????????????????????????????????????????? | +----------------------------------------------------+ Best States ------------- Heat Dissipation 28 Energy Generation 10 Energy Capacity 250 Matter Stores 229 Matter Capacity 300 Sight Range 16 Robot Scan Range 14 Terrain Scan Density 10 Evasion (%) 55 Item Schematics ----------------- None Robot Schematics ------------------ None Fabricated ------------ Nothing Alien Tech Used ----------------- None Achievements -------------- None Challenges ------------ None Game ------ Seed ElectronSurveybotEdition Manual? 0 Play Time 00:08:51 Cumulative 6.5 hours Start 2024.04.05 @ 14:28:29 End 2024.04.05 @ 14:35:56 Sessions 1 Manual Loads 0 Difficulty Rogue Special Mode None Game No. 18 Rogue 18 Adventurer 0 Explorer 0 Win Type - Total 0 Types 0/0/0/0/0/0/0/0/0 Lore% 5 Gallery% 12 Achievement% 13 Wizard Run 0 Options --------- Layout 1 ASCII 0 Keyboard 0 Movement Mouse Keybinds 0 Fullscreen 2 Font 32/Terminus Map View 50x35 Zoom Use 0% Tactical HUD 0 Map Filters NONE Filters NONE Steam 1 RUN: 9c2b1407-725a-4b68-a509-2be043c03863